[Event "3rd Memorial Warakomska 2019"]
[Site "Suwalki"]
[Date "2019.08.07"]
[Round "4.30"]
[White "Efroimski, Marsel"]
[Black "Hoffmann, Yair"]
[Result "1-0"]
[ECO "B11"]
[WhiteElo "2318"]
[BlackElo "2099"]
[Annotator "NA"]
[PlyCount "147"]
[EventDate "2019.08.05"]
[EventType "swiss"]
[EventCountry "POL"]
[SourceTitle "playchess.com"]
[Source "ChessBase"]
[SourceQuality "1"]
[TimeControl "40/5400+30:1800+30"]

1. e4 {[%emt 0:00:53]} c6 {[%emt 0:00:00]} 2. Nc3 {[%emt 0:00:04]} d5 {[%emt 0:00:00]} 3. Nf3 {[%emt 0:00:05]} Bg4 {[%emt 0:00:00]} 4. h3 {[%emt 0:00:02]} Bxf3 {[%emt 0:00:05]} 5. Qxf3 {[%emt 0:00:02]} e6 {[%emt 0:01:16]} 6. Be2 {[%emt 0:00:51]} Nf6 {[%emt 0:01:38]} 7. O-O {[%emt 0:00:05]} dxe4 {[%emt 0:04:33]} 8. Nxe4 {[%emt 0:00:32]} Nbd7 {[%emt 0:00:52]} 9. d3 {[%emt 0:05:59]} Qc7 {[%emt 0:16:29]} 10. Bf4 {[%emt 0:06:03]} e5 {[%emt 0:01:35]} 11. Nxf6+ {[%emt 0:15:19]} Nxf6 {[%emt 0:00:31]} 12. Qe3 {[%emt 0:01:54]} Bd6 {[%emt 0:03:26]} 13. Bxe5 {[%emt 0:02:13]} Bxe5 {[%emt 0:00:49]} 14. d4 {[%emt 0:02:40]} O-O {[%emt 0:01:27]} 15. dxe5 {[%emt 0:04:36]} Nd5 {[%emt 0:00:14]} 16. Qd4 {[%emt 0:08:39]} Rfe8 {[%emt 0:04:40]} 17. f4 {[%emt 0:01:24]} f6 {[%emt 0:00:11]} 18. Bc4 {[%emt 0:04:19]} fxe5 {[%emt 0:00:24]} 19. fxe5 {[%emt 0:10:10]} Qxe5 {[%emt 0:04:16]} 20. Rad1 {[%emt 0:06:18]} Qxd4+ {[%emt 0:05:30]} 21. Rxd4 {[%emt 0:00:12]} Re5 {[%emt 0:00:03]} 22. Rfd1 {[%emt 0:02:59]} Rc8 {[%emt 0:07:18]} 23. c3 {[%emt 0:05:28]} Kf7 {[%emt 0:00:48]} 24. Bxd5+ {[%emt 0:03:19]} cxd5 {[%emt 0:00:17]} 25. Rxd5 {[%emt 0:00:10]} Rxd5 {[%emt 0:00:06]} 26. Rxd5 {[%emt 0:00:02]} Ke6 {[%emt 0:00:07]} 27. Rb5 {[%emt 0:02:01]} b6 {[%emt 0:00:31]} 28. Kf2 {[%emt 0:00:31]} Rf8+ {[%emt 0:00:48]} 29. Ke2 {[%emt 0:00:38]} Rf4 {[%emt 0:00:28]} 30. Rg5 {[%emt 0:04:27]} g6 {[%emt 0:00:58]} 31. Rg3 {[%emt 0:00:08]} Rf7 {[%emt 0:02:20]} 32. Rf3 {[%emt 0:04:35]} Rd7 {[%emt 0:01:25]} 33. Re3+ {[%emt 0:03:36]} Kf5 {[%emt 0:01:41]} 34. c4 {[%emt 0:01:01]} h5 {[%emt 0:02:39]} 35. b3 {[%emt 0:01:04]} g5 {[%emt 0:09:39]} 36. Rd3 {[%emt 0:00:58]} Re7+ {[%emt 0:00:05]} 37. Kf3 {[%emt 0:01:18]} h4 {[%emt 0:00:05]} 38. Rd5+ {[%emt 0:00:45]} Kg6 {[%emt 0:00:07]} 39. c5 {[%emt 0:02:43]} bxc5 {[%emt 0:01:21]} 40. Rxc5 {[%emt 0:00:00]} Rf7+ {[%emt 0:00:00]} 41. Ke2 {[%emt 0:01:24]} Re7+ {[%emt 0:05:34]} 42. Kd2 {[%emt 0:01:16]} Rf7 {[%emt 0:01:36]} 43. Re5 {[%emt 0:07:54]} Rf2+ {[%emt 0:00:47]} 44. Re2 {[%emt 0:00:04]} Rf7 {[%emt 0:00:17]} 45. b4 {[%emt 0:00:36]} Rc7 {[%emt 0:01:44]} 46. Kd3 {[%emt 0:00:48]} Kf5 {[%emt 0:02:46]} 47. a4 {[%emt 0:00:49]} Rd7+ {[%emt 0:01:20]} 48. Kc4 {[%emt 0:04:39]} Kf4 {[%emt 0:00:05]} 49. b5 {[%emt 0:00:10]} Rd1 {[%emt 0:00:20]} 50. a5 {[%emt 0:00:59]} Rc1+ {[%emt 0:00:20]} 51. Kd5 {[%emt 0:04:16]} Ra1 {[%emt 0:00:33]} 52. a6 {[%emt 0:04:40]} Rd1+ {[%emt 0:00:57]} 53. Kc6 {[%emt 0:00:16]} Rc1+ {[%emt 0:00:04]} 54. Kb7 {[%emt 0:08:17]} Rb1 {[%emt 0:00:31]} 55. Rf2+ {[%emt 0:02:01]} Ke5 {[%emt 0:00:07]} 56. Kxa7 {[%emt 0:00:37]} Rxb5 {[%emt 0:00:07]} 57. Rf7 {[%emt 0:00:59]} Rb2 {[%emt 0:02:24]} 58. Rb7 {[%emt 0:00:12]} Rxg2 {[%emt 0:00:40]} 59. Kb8 {[%emt 0:00:15]} Ra2 {[%emt 0:00:39]} 60. a7 {[%emt 0:00:14]} g4 {[%emt 0:04:55]} 61. hxg4 {[%emt 0:01:12]} Kf4 {[%emt 0:00:05]} 62. Rg7 {[%emt 0:00:38]} Rb2+ {[%emt 0:00:26]} 63. Kc8 {[%emt 0:00:20]} Ra2 {[%emt 0:00:28]} 64. Kb7 {[%emt 0:00:07]} Rb2+ {[%emt 0:00:11]} 65. Kc6 {[%emt 0:00:50]} Ra2 {[%emt 0:00:19]} 66. g5 {[%emt 0:00:39]} Kf5 {[%emt 0:00:57]} 67. Kb7 {[%emt 0:00:30]} Rb2+ {[%emt 0:00:19]} 68. Kc8 {[%emt 0:00:28]} Ra2 {[%emt 0:00:37]} 69. Kb8 {[%emt 0:00:11]} Rb2+ {[%emt 0:00:53]} 70. Rb7 {[%emt 0:00:07]} Ra2 {[%emt 0:00:03]} 71. Rb5+ {[%emt 0:00:07]} Kg6 {[%emt 0:00:04]} 72. a8=Q {[%emt 0:00:14]} Rxa8+ {[%emt 0:00:07]} 73. Kxa8 {[%emt 0:00:03]} h3 {[%emt 0:00:04]} 74. Rb3 {[%emt 0:00:18]} 1-0

[Event "3rd Memorial Warakomska 2019"]
[Site "Suwalki"]
[Date "2019.08.07"]
[Round "4.31"]
[White "Lisowski, Krzysztof"]
[Black "Fiedorek, Michal"]
[Result "1/2-1/2"]
[ECO "B31"]
[WhiteElo "2187"]
[BlackElo "2241"]
[Annotator "NA"]
[PlyCount "93"]
[EventDate "2019.08.05"]
[EventType "swiss"]
[EventCountry "POL"]
[SourceTitle "playchess.com"]
[Source "ChessBase"]
[SourceQuality "1"]
[TimeControl "40/5400+30:1800+30"]

1. e4 {[%emt 0:00:00]} c5 {[%emt 0:00:00]} 2. Nf3 {[%emt 0:00:04]} Nc6 {[%emt 0:00:00]} 3. Bb5 {[%emt 0:00:40]} g6 {[%emt 0:00:00]} 4. Bxc6 {[%emt 0:01:55]} dxc6 {[%emt 0:00:04]} 5. d3 {[%emt 0:00:54]} Bg7 {[%emt 0:00:16]} 6. h3 {[%emt 0:00:44]} Nf6 {[%emt 0:00:17]} 7. Nc3 {[%emt 0:00:25]} Nd7 {[%emt 0:00:33]} 8. Be3 {[%emt 0:00:18]} e5 {[%emt 0:00:16]} 9. Qd2 {[%emt 0:00:07]} h6 {[%emt 0:00:10]} 10. O-O {[%emt 0:00:59]} b6 {[%emt 0:00:26]} 11. Nh2 {[%emt 0:00:29]} Nf8 {[%emt 0:01:27]} 12. f4 {[%emt 0:00:11]} exf4 {[%emt 0:00:14]} 13. Bxf4 {[%emt 0:00:06]} Ne6 {[%emt 0:00:24]} 14. Be3 {[%emt 0:01:42]} Nd4 {[%emt 0:00:50]} 15. Nd1 {[%emt 0:01:04]} Qd6 {[%emt 0:03:14]} 16. Bf4 {[%emt 0:30:43]} Qe7 {[%emt 0:04:17]} 17. c3 {[%emt 0:04:34]} Ne6 {[%emt 0:02:18]} 18. Bg3 {[%emt 0:03:23]} h5 {[%emt 0:04:48]} 19. Nf3 {[%emt 0:03:45]} Ba6 {[%emt 0:12:52]} 20. e5 {[%emt 0:17:52]} Bh6 {[%emt 0:08:49]} 21. Qe2 {[%emt 0:00:50]} O-O-O {[%emt 0:03:01]} 22. Nf2 {[%emt 0:00:53]} Bf4 {[%emt 0:16:28]} 23. Bxf4 {[%emt 0:04:05]} Nxf4 {[%emt 0:00:27]} 24. Qe4 {[%emt 0:00:57]} Nxd3 {[%emt 0:01:38]} 25. Qxc6+ {[%emt 0:02:12]} Kb8 {[%emt 0:01:05]} 26. Nxd3 {[%emt 0:15:22]} Rxd3 {[%emt 0:09:05]} 27. Qe4 {[%emt 0:01:53]} Rhd8 {[%emt 0:07:46]} 28. Rae1 {[%emt 0:03:20]} Bb7 {[%emt 0:06:15]} 29. Qf4 {[%emt 0:00:07]} Ka8 {[%emt 0:02:13]} 30. Rf2 {[%emt 0:01:18]} Bxf3 {[%emt 0:09:49]} 31. Rxf3 {[%emt 0:00:06]} Rxf3 {[%emt 0:00:32]} 32. Qxf3+ {[%emt 0:00:26]} Kb8 {[%emt 0:03:11]} 33. e6 {[%emt 0:03:23]} fxe6 {[%emt 0:02:44]} 34. Qg3+ {[%emt 0:00:29]} e5 {[%emt 0:00:41]} 35. Qxg6 {[%emt 0:00:35]} h4 {[%emt 0:00:23]} 36. Qe4 {[%emt 0:01:32]} Rd2 {[%emt 0:00:29]} 37. Re2 {[%emt 0:00:29]} Rxe2 {[%emt 0:00:41]} 38. Qxe2 {[%emt 0:00:04]} Qg5 {[%emt 0:00:35]} 39. Qd3 {[%emt 0:01:00]} Qc1+ {[%emt 0:00:38]} 40. Kh2 {[%emt 0:00:00]} Qf4+ {[%emt 0:00:00]} 41. Kg1 {[%emt 0:00:22]} Kc8 {[%emt 0:13:25]} 42. Qd6 {[%emt 0:02:57]} Qe3+ {[%emt 0:04:45]} 43. Kh2 {[%emt 0:00:31]} Qg3+ {[%emt 0:00:58]} 44. Kg1 {[%emt 0:00:12]} Qe3+ {[%emt 0:02:25]} 45. Kh2 {[%emt 0:00:32]} Qf4+ {[%emt 0:00:05]} 46. Kg1 {[%emt 0:00:08]} Qe3+ {[%emt 0:05:33]} 47. Kh2 {[%emt 0:00:38]} 1/2-1/2

[Event "3rd Memorial Warakomska 2019"]
[Site "Suwalki"]
[Date "2019.08.07"]
[Round "4.32"]
[White "Selbes, Tarik"]
[Black "Bachor, Tomasz"]
[Result "0-1"]
[ECO "B27"]
[WhiteElo "2342"]
[BlackElo "2022"]
[Annotator "NA"]
[PlyCount "86"]
[EventDate "2019.08.05"]
[EventType "swiss"]
[EventCountry "POL"]
[SourceTitle "playchess.com"]
[Source "ChessBase"]
[SourceQuality "1"]
[TimeControl "40/5400+30:1800+30"]

1. e4 {[%emt 0:00:12]} c5 {[%emt 0:00:00]} 2. Nf3 {[%emt 0:00:24]} g6 {[%emt 0:00:00]} 3. c3 {[%emt 0:00:28]} Bg7 {[%emt 0:00:00]} 4. d4 {[%emt 0:00:10]} cxd4 {[%emt 0:00:05]} 5. cxd4 {[%emt 0:00:06]} d5 {[%emt 0:00:07]} 6. exd5 {[%emt 0:02:22]} Nf6 {[%emt 0:00:12]} 7. Qa4+ {[%emt 0:07:52]} Nbd7 {[%emt 0:02:01]} 8. Nc3 {[%emt 0:00:57]} O-O {[%emt 0:01:10]} 9. Qb3 {[%emt 0:00:23]} Nb6 {[%emt 0:01:09]} 10. Bg5 {[%emt 0:08:15]} Nfxd5 {[%emt 0:05:07]} 11. Be2 {[%emt 0:01:27]} Be6 {[%emt 0:03:17]} 12. Qa3 {[%emt 0:00:35]} h6 {[%emt 0:03:20]} 13. Bh4 {[%emt 0:00:30]} f5 {[%emt 0:05:33]} 14. O-O {[%emt 0:03:46]} g5 {[%emt 0:04:21]} 15. Bxg5 {[%emt 0:00:05]} hxg5 {[%emt 0:00:03]} 16. Nxg5 {[%emt 0:00:05]} Bf7 {[%emt 0:07:26]} 17. Nxd5 {[%emt 0:01:42]} Bxd5 {[%emt 0:16:49]} 18. Qh3 {[%emt 0:00:37]} Rf6 {[%emt 0:00:32]} 19. f4 {[%emt 0:00:49]} Qd7 {[%emt 0:03:44]} 20. Bd3 {[%emt 0:01:35]} e6 {[%emt 0:04:45]} 21. Rad1 {[%emt 0:02:55]} Rh6 {[%emt 0:01:13]} 22. Qg3 {[%emt 0:00:02]} Nc8 {[%emt 0:05:03]} 23. Rfe1 {[%emt 0:00:28]} Nd6 {[%emt 0:01:09]} 24. Re5 {[%emt 0:00:27]} Nf7 {[%emt 0:01:45]} 25. Re3 {[%emt 0:09:46]} Nxg5 {[%emt 0:01:38]} 26. fxg5 {[%emt 0:00:35]} Rh7 {[%emt 0:00:32]} 27. Bb1 {[%emt 0:00:58]} Rc8 {[%emt 0:00:43]} 28. Rc3 {[%emt 0:01:06]} Rxc3 {[%emt 0:00:42]} 29. bxc3 {[%emt 0:00:02]} Bf8 {[%emt 0:01:15]} 30. h4 {[%emt 0:00:10]} Qc7 {[%emt 0:01:20]} 31. Qf2 {[%emt 0:00:33]} Bd6 {[%emt 0:06:03]} 32. Bxf5 {[%emt 0:03:45]} Rf7 {[%emt 0:03:34]} 33. Bxe6 {[%emt 0:00:08]} Bxe6 {[%emt 0:00:03]} 34. Qe3 {[%emt 0:00:07]} Bd5 {[%emt 0:02:26]} 35. Qe8+ {[%emt 0:01:57]} Bf8 {[%emt 0:01:09]} 36. g6 {[%emt 0:01:46]} Re7 {[%emt 0:00:23]} 37. Qb5 {[%emt 0:00:07]} Qc6 {[%emt 0:00:28]} 38. Qb2 {[%emt 0:00:13]} Qxg6 {[%emt 0:00:15]} 39. Rf1 {[%emt 0:00:09]} Rg7 {[%emt 0:00:48]} 40. Rf2 {[%emt 0:00:00]} Qe4 {[%emt 0:00:00]} 41. h5 {[%emt 0:00:31]} Qe1+ {[%emt 0:01:09]} 42. Rf1 {[%emt 0:00:29]} Qe3+ {[%emt 0:00:06]} 43. Rf2 {[%emt 0:00:06]} Rxg2+ {[%emt 0:00:08]} 0-1

[Event "3rd Memorial Warakomska 2019"]
[Site "Suwalki"]
[Date "2019.08.07"]
[Round "4.33"]
[White "Czerw, Dawid"]
[Black "Kokoszczynski, Jan"]
[Result "1/2-1/2"]
[ECO "A57"]
[WhiteElo "2326"]
[BlackElo "2238"]
[Annotator "NA"]
[PlyCount "40"]
[EventDate "2019.08.05"]
[EventType "swiss"]
[EventCountry "POL"]
[SourceTitle "playchess.com"]
[Source "ChessBase"]
[SourceQuality "1"]
[TimeControl "40/5400+30:1800+30"]

1. d4 {[%emt 0:00:00]} Nf6 {[%emt 0:00:54]} 2. c4 {[%emt 0:00:00]} c5 {[%emt 0:00:29]} 3. d5 {[%emt 0:00:00]} b5 {[%emt 0:00:04]} 4. cxb5 {[%emt 0:00:16]} a6 {[%emt 0:00:10]} 5. e3 {[%emt 0:01:24]} g6 {[%emt 0:00:13]} 6. Nc3 {[%emt 0:00:42]} Bg7 {[%emt 0:00:09]} 7. a4 {[%emt 0:02:05]} O-O {[%emt 0:00:23]} 8. Nf3 {[%emt 0:01:13]} Bb7 {[%emt 0:00:41]} 9. e4 {[%emt 0:03:29]} e6 {[%emt 0:02:19]} 10. Be2 {[%emt 0:18:53]} exd5 {[%emt 0:09:09]} 11. exd5 {[%emt 0:00:18]} axb5 {[%emt 0:01:52]} 12. Bxb5 {[%emt 0:01:06]} Re8+ {[%emt 0:06:17]} 13. Be2 {[%emt 0:01:36]} Na6 {[%emt 0:04:04]} 14. O-O {[%emt 0:02:05]} Nb4 {[%emt 0:01:46]} 15. Bc4 {[%emt 0:03:29]} Ne4 {[%emt 0:07:19]} 16. Ra3 {[%emt 0:05:45]} Nd6 {[%emt 0:10:01]} 17. Be2 {[%emt 0:02:03]} Nf5 {[%emt 0:10:42]} 18. Bc4 {[%emt 0:03:31]} Nd6 {[%emt 0:03:17]} 19. Be2 {[%emt 0:00:57]} Nf5 {[%emt 0:05:09]} 20. Bc4 {[%emt 0:12:03]} Nd6 {[%emt 0:03:42]} 1/2-1/2

[Event "3rd Memorial Warakomska 2019"]
[Site "Suwalki"]
[Date "2019.08.07"]
[Round "4.34"]
[White "Szadkowski, Kamil"]
[Black "Bai, Adelard"]
[Result "1/2-1/2"]
[ECO "C71"]
[WhiteElo "2245"]
[BlackElo "2113"]
[Annotator "NA"]
[PlyCount "99"]
[EventDate "2019.08.05"]
[EventType "swiss"]
[EventCountry "POL"]
[SourceTitle "playchess.com"]
[Source "ChessBase"]
[SourceQuality "1"]
[TimeControl "40/5400+30:1800+30"]

1. e4 {[%emt 0:00:00]} e5 {[%emt 0:00:00]} 2. Nf3 {[%emt 0:00:00]} Nc6 {[%emt 0:00:00]} 3. Bb5 {[%emt 0:00:08]} a6 {[%emt 0:00:07]} 4. Ba4 {[%emt 0:00:04]} d6 {[%emt 0:00:49]} 5. d4 {[%emt 0:02:01]} b5 {[%emt 0:00:23]} 6. Bb3 {[%emt 0:00:05]} Nxd4 {[%emt 0:00:09]} 7. Nxd4 {[%emt 0:00:54]} exd4 {[%emt 0:00:09]} 8. c3 {[%emt 0:00:43]} dxc3 {[%emt 0:02:24]} 9. Nxc3 {[%emt 0:01:15]} Nf6 {[%emt 0:01:30]} 10. e5 {[%emt 0:03:19]} dxe5 {[%emt 0:01:03]} 11. Bxf7+ {[%emt 0:00:14]} Ke7 {[%emt 0:00:10]} 12. Qb3 {[%emt 0:07:50]} Qd6 {[%emt 0:13:57]} 13. Bg5 {[%emt 0:05:39]} Be6 {[%emt 0:08:19]} 14. Bxe6 {[%emt 0:00:33]} Qxe6 {[%emt 0:00:11]} 15. Nd5+ {[%emt 0:01:45]} Kd7 {[%emt 0:26:27]} 16. Bxf6 {[%emt 0:02:29]} gxf6 {[%emt 0:01:16]} 17. O-O {[%emt 0:00:11]} Bd6 {[%emt 0:01:44]} 18. Rfd1 {[%emt 0:01:58]} Rab8 {[%emt 0:07:43]} 19. Rac1 {[%emt 0:01:08]} c6 {[%emt 0:11:40]} 20. Ne3 {[%emt 0:03:38]} Qxb3 {[%emt 0:01:03]} 21. axb3 {[%emt 0:00:09]} Rhd8 {[%emt 0:03:36]} 22. Ng4 {[%emt 0:01:45]} Rf8 {[%emt 0:00:14]} 23. Rc3 {[%emt 0:01:41]} Kc7 {[%emt 0:03:26]} 24. Rdc1 {[%emt 0:02:59]} c5 {[%emt 0:00:37]} 25. Rh3 {[%emt 0:01:21]} Rf7 {[%emt 0:01:54]} 26. Rh6 {[%emt 0:01:15]} Rbf8 {[%emt 0:01:41]} 27. b4 {[%emt 0:00:31]} e4 {[%emt 0:02:47]} 28. Rh5 {[%emt 0:01:25]} Kb7 {[%emt 0:01:40]} 29. bxc5 {[%emt 0:00:10]} Bf4 {[%emt 0:00:50]} 30. Rd1 {[%emt 0:00:17]} a5 {[%emt 0:00:50]} 31. Rf5 {[%emt 0:02:12]} Bc7 {[%emt 0:00:40]} 32. Ne3 {[%emt 0:03:45]} Re8 {[%emt 0:00:49]} 33. c6+ {[%emt 0:00:22]} Kxc6 {[%emt 0:02:07]} 34. Rc1+ {[%emt 0:00:39]} Kb6 {[%emt 0:00:13]} 35. Nd5+ {[%emt 0:00:49]} Kb7 {[%emt 0:00:06]} 36. Nxc7 {[%emt 0:02:53]} Rxc7 {[%emt 0:00:06]} 37. Rxb5+ {[%emt 0:00:11]} Kc8 {[%emt 0:00:13]} 38. Rxc7+ {[%emt 0:00:46]} Kxc7 {[%emt 0:00:07]} 39. Rxa5 {[%emt 0:00:05]} Rb8 {[%emt 0:01:11]} 40. Rc5+ {[%emt 0:00:00]} Kd6 {[%emt 0:00:00]} 41. Rc2 {[%emt 0:01:37]} Rb7 {[%emt 0:02:36]} 42. Kf1 {[%emt 0:01:16]} Kd5 {[%emt 0:01:25]} 43. Ke2 {[%emt 0:00:56]} Kd4 {[%emt 0:01:55]} 44. Rd2+ {[%emt 0:02:31]} Ke5 {[%emt 0:00:13]} 45. Kd1 {[%emt 0:00:41]} f5 {[%emt 0:01:07]} 46. Ke2 {[%emt 0:02:36]} Rb3 {[%emt 0:03:04]} 47. Rc2 {[%emt 0:03:22]} Kd4 {[%emt 0:01:29]} 48. g3 {[%emt 0:00:13]} Ke5 {[%emt 0:00:55]} 49. Kd1 {[%emt 0:01:15]} f4 {[%emt 0:06:16]} 50. gxf4+ {[%emt 0:01:51]} 1/2-1/2

[Event "3rd Memorial Warakomska 2019"]
[Site "Suwalki"]
[Date "2019.08.07"]
[Round "4.35"]
[White "Kukula, Pawel"]
[Black "Szostko, Jakub"]
[Result "1-0"]
[ECO "E29"]
[WhiteElo "2209"]
[BlackElo "2245"]
[Annotator "NA"]
[PlyCount "57"]
[EventDate "2019.08.05"]
[EventType "swiss"]
[EventCountry "POL"]
[SourceTitle "playchess.com"]
[Source "ChessBase"]
[SourceQuality "1"]
[TimeControl "40/5400+30:1800+30"]

1. d4 {[%emt 0:00:00]} Nf6 {[%emt 0:00:00]} 2. c4 {[%emt 0:00:00]} e6 {[%emt 0:00:00]} 3. Nc3 {[%emt 0:00:00]} Bb4 {[%emt 0:00:08]} 4. a3 {[%emt 0:00:00]} Bxc3+ {[%emt 0:00:07]} 5. bxc3 {[%emt 0:00:04]} c5 {[%emt 0:01:49]} 6. e3 {[%emt 0:00:16]} O-O {[%emt 0:01:17]} 7. Bd3 {[%emt 0:00:18]} Nc6 {[%emt 0:01:05]} 8. Ne2 {[%emt 0:01:56]} b6 {[%emt 0:01:34]} 9. e4 {[%emt 0:02:21]} Ne8 {[%emt 0:00:52]} 10. O-O {[%emt 0:00:14]} Ba6 {[%emt 0:07:15]} 11. Ng3 {[%emt 0:10:45]} Na5 {[%emt 0:14:16]} 12. Qe2 {[%emt 0:03:15]} Rc8 {[%emt 0:02:14]} 13. d5 {[%emt 0:02:04]} Nd6 {[%emt 0:25:40]} 14. e5 {[%emt 0:01:04]} Ndxc4 {[%emt 0:00:41]} 15. Qh5 {[%emt 0:03:49]} g6 {[%emt 0:01:36]} 16. Qh6 {[%emt 0:00:34]} f5 {[%emt 0:03:19]} 17. exf6 {[%emt 0:09:49]} Qxf6 {[%emt 0:02:30]} 18. Bg5 {[%emt 0:04:43]} Qg7 {[%emt 0:01:59]} 19. dxe6 {[%emt 0:01:49]} dxe6 {[%emt 0:02:14]} 20. Qh4 {[%emt 0:06:00]} b5 {[%emt 0:06:51]} 21. Ne4 {[%emt 0:03:25]} Ne5 {[%emt 0:12:48]} 22. Bh6 {[%emt 0:05:11]} Qc7 {[%emt 0:05:49]} 23. Bxf8 {[%emt 0:00:13]} Rxf8 {[%emt 0:00:13]} 24. Be2 {[%emt 0:01:02]} Nac4 {[%emt 0:03:37]} 25. f4 {[%emt 0:01:45]} Nc6 {[%emt 0:00:35]} 26. Bxc4 {[%emt 0:00:08]} bxc4 {[%emt 0:00:04]} 27. Rad1 {[%emt 0:00:22]} Qg7 {[%emt 0:00:22]} 28. Rd6 {[%emt 0:01:57]} Bb7 {[%emt 0:00:37]} 29. Nxc5 {[%emt 0:00:25]} 1-0

[Event "3rd Memorial Warakomska 2019"]
[Site "Suwalki"]
[Date "2019.08.07"]
[Round "4.36"]
[White "Kiolbasa, Oliwia"]
[Black "Luba, Lukasz"]
[Result "1/2-1/2"]
[ECO "C18"]
[WhiteElo "2239"]
[BlackElo "2177"]
[Annotator "NA"]
[PlyCount "87"]
[EventDate "2019.08.05"]
[EventType "swiss"]
[EventCountry "POL"]
[SourceTitle "playchess.com"]
[Source "ChessBase"]
[SourceQuality "1"]
[TimeControl "40/5400+30:1800+30"]

1. e4 {[%emt 0:00:00]} e6 {[%emt 0:01:24]} 2. d4 {[%emt 0:00:00]} d5 {[%emt 0:00:06]} 3. Nc3 {[%emt 0:00:00]} Bb4 {[%emt 0:00:17]} 4. e5 {[%emt 0:00:25]} c5 {[%emt 0:01:00]} 5. a3 {[%emt 0:00:12]} Bxc3+ {[%emt 0:01:07]} 6. bxc3 {[%emt 0:00:11]} c4 {[%emt 0:00:19]} 7. h4 {[%emt 0:03:11]} Ne7 {[%emt 0:03:34]} 8. h5 {[%emt 0:00:10]} f5 {[%emt 0:00:19]} 9. exf6 {[%emt 0:06:30]} gxf6 {[%emt 0:00:06]} 10. Nf3 {[%emt 0:00:20]} Nbc6 {[%emt 0:03:48]} 11. Bf4 {[%emt 0:09:34]} Qa5 {[%emt 0:16:57]} 12. Qd2 {[%emt 0:00:57]} Bd7 {[%emt 0:01:08]} 13. g3 {[%emt 0:02:08]} O-O-O {[%emt 0:02:45]} 14. Bh3 {[%emt 0:00:49]} Rde8 {[%emt 0:01:45]} 15. O-O {[%emt 0:04:12]} Nd8 {[%emt 0:00:08]} 16. Rfe1 {[%emt 0:03:27]} Nec6 {[%emt 0:01:35]} 17. Re2 {[%emt 0:04:52]} Nf7 {[%emt 0:05:46]} 18. Qe1 {[%emt 0:03:31]} Ncd8 {[%emt 0:01:02]} 19. Nh4 {[%emt 0:11:42]} Rhg8 {[%emt 0:01:02]} 20. Ng2 {[%emt 0:00:53]} Ng5 {[%emt 0:00:30]} 21. Bxg5 {[%emt 0:01:37]} Rxg5 {[%emt 0:01:09]} 22. Nf4 {[%emt 0:01:51]} Qa6 {[%emt 0:13:58]} 23. Bg2 {[%emt 0:00:35]} Qd6 {[%emt 0:00:46]} 24. Qd2 {[%emt 0:00:24]} Reg8 {[%emt 0:03:39]} 25. a4 {[%emt 0:03:41]} Kb8 {[%emt 0:08:35]} 26. a5 {[%emt 0:00:15]} Bc8 {[%emt 0:00:13]} 27. a6 {[%emt 0:05:22]} b6 {[%emt 0:00:13]} 28. Ree1 {[%emt 0:00:48]} Kc7 {[%emt 0:03:23]} 29. Kf1 {[%emt 0:02:42]} Nc6 {[%emt 0:00:53]} 30. Qe3 {[%emt 0:00:47]} Nd8 {[%emt 0:03:48]} 31. Bf3 {[%emt 0:04:40]} Re8 {[%emt 0:04:09]} 32. Nh3 {[%emt 0:07:23]} Rg7 {[%emt 0:02:41]} 33. Nf4 {[%emt 0:06:09]} Rge7 {[%emt 0:02:41]} 34. Qd2 {[%emt 0:03:37]} Nc6 {[%emt 0:01:21]} 35. Re3 {[%emt 0:00:49]} b5 {[%emt 0:02:23]} 36. h6 {[%emt 0:03:32]} Kb6 {[%emt 0:00:50]} 37. Rae1 {[%emt 0:03:11]} Kxa6 {[%emt 0:01:08]} 38. Nh5 {[%emt 0:03:02]} Rf8 {[%emt 0:02:29]} 39. Nf4 {[%emt 0:01:45]} Rfe8 {[%emt 0:04:37]} 40. Nh5 {[%emt 0:00:00]} Rf8 {[%emt 0:00:00]} 41. Nf4 {[%emt 0:01:56]} Rfe8 42. Bh5 Rf8 43. Bf3 b4 44. Qe2 1/2-1/2

[Event "3rd Memorial Warakomska 2019"]
[Site "Suwalki"]
[Date "2019.08.07"]
[Round "4.37"]
[White "Sanz Wawer, Daniel"]
[Black "Mulet, Piotr"]
[Result "1-0"]
[ECO "D70"]
[WhiteElo "2154"]
[BlackElo "2244"]
[Annotator "NA"]
[PlyCount "86"]
[EventDate "2019.08.05"]
[EventType "swiss"]
[EventCountry "POL"]
[SourceTitle "playchess.com"]
[Source "ChessBase"]
[SourceQuality "1"]
[TimeControl "40/5400+30:1800+30"]

1. d4 {[%emt 0:01:05]} Nf6 {[%emt 0:00:00]} 2. c4 {[%emt 0:00:07]} g6 {[%emt 0:00:00]} 3. f3 {[%emt 0:00:06]} d5 {[%emt 0:00:17]} 4. cxd5 {[%emt 0:00:44]} Nxd5 {[%emt 0:00:07]} 5. e4 {[%emt 0:00:08]} Nb6 {[%emt 0:00:10]} 6. Nc3 {[%emt 0:00:06]} Bg7 {[%emt 0:00:10]} 7. Be3 {[%emt 0:00:08]} O-O {[%emt 0:00:26]} 8. Qd2 {[%emt 0:00:07]} Nc6 {[%emt 0:00:43]} 9. O-O-O {[%emt 0:00:09]} Qd6 {[%emt 0:01:01]} 10. Kb1 {[%emt 0:01:21]} Rd8 {[%emt 0:00:53]} 11. Nb5 {[%emt 0:00:31]} Qd7 {[%emt 0:00:14]} 12. d5 {[%emt 0:00:40]} Ne5 {[%emt 0:00:42]} 13. Qc2 {[%emt 0:04:02]} c6 {[%emt 0:13:30]} 14. Nxa7 {[%emt 0:03:57]} Qc7 {[%emt 0:00:08]} 15. Nb5 {[%emt 0:08:52]} Qd7 {[%emt 0:00:01]} 16. Bxb6 {[%emt 0:03:33]} cxb5 {[%emt 0:00:03]} 17. Qb3 {[%emt 0:16:47]} Nc4 {[%emt 0:03:52]} 18. Bxc4 {[%emt 0:02:50]} bxc4 {[%emt 0:00:05]} 19. Qxc4 {[%emt 0:00:39]} Re8 {[%emt 0:00:49]} 20. Ne2 {[%emt 0:02:02]} e6 {[%emt 0:00:36]} 21. Nc3 {[%emt 0:02:13]} Bxc3 {[%emt 0:01:46]} 22. Qxc3 {[%emt 0:04:11]} exd5 {[%emt 0:00:13]} 23. Rxd5 {[%emt 0:09:07]} Qa4 {[%emt 0:00:10]} 24. Ra5 {[%emt 0:06:08]} Rxa5 {[%emt 0:00:12]} 25. Qxa5 {[%emt 0:00:22]} Qc4 {[%emt 0:04:24]} 26. Rd1 {[%emt 0:01:26]} Be6 {[%emt 0:00:23]} 27. b3 {[%emt 0:01:23]} Qe2 {[%emt 0:01:48]} 28. Qd2 {[%emt 0:00:50]} Qb5 {[%emt 0:00:01]} 29. Bd4 {[%emt 0:05:44]} Rd8 {[%emt 0:00:23]} 30. Qc2 {[%emt 0:03:14]} h6 {[%emt 0:01:56]} 31. Bf6 {[%emt 0:02:05]} Re8 {[%emt 0:00:14]} 32. Bb2 {[%emt 0:01:23]} Kh7 {[%emt 0:02:41]} 33. Qc3 {[%emt 0:01:59]} Rg8 {[%emt 0:00:01]} 34. Rd3 {[%emt 0:01:31]} h5 {[%emt 0:03:29]} 35. Qd2 {[%emt 0:01:37]} Rc8 {[%emt 0:01:59]} 36. Rc3 {[%emt 0:05:38]} Rg8 {[%emt 0:03:26]} 37. h4 {[%emt 0:02:25]} Qb6 {[%emt 0:00:28]} 38. Bc1 {[%emt 0:02:40]} Rd8 {[%emt 0:00:04]} 39. Qh6+ {[%emt 0:04:45]} Kg8 {[%emt 0:00:05]} 40. Bb2 {[%emt 0:00:00]} Rd1+ {[%emt 0:00:00]} 41. Kc2 {[%emt 0:13:07]} Rd8 {[%emt 0:05:21]} 42. Re3 {[%emt 0:01:39]} Rc8+ {[%emt 0:04:10]} 43. Kb1 {[%emt 0:00:53]} Qd6 {[%emt 0:00:52]} 1-0